bitfinex-derivatives/quotes_ETHF0:USTF0_20250626
["timestamp","ask_amount","ask_price","bid_price","bid_amount"]
[1750906777464,0.80201,2492.5,2492.1,4.5114]
[1750906777665,0.80201,2492.5,2492.2,1.3036]
[1750906778069,0.80202,2492.4,2492.2,1.3036]
[1750906778573,46.203,2493.0,2492.2,6.3036]
[1750906778766,0.80197,2492.6,2492.4,3.2078]
[1750906779071,0.80197,2492.6,2492.5,1.3705]
[1750906779565,0.80198,2492.5,2492.4,3.2078]
[1750906782471,0.80195,2492.6,2492.1,5.38039]
[1750906782673,0.80198,2492.5,2492.2,1.3694]
[1750906783277,0.80201,2492.4,2492.2,1.3694]
[1750906784075,0.80205,2492.3,2492.1,3.2078]
[1750906784373,0.80207,2492.2,2492.1,3.2078]
[1750906784969,0.80206,2492.3,2492.1,3.2078]
[1750906785365,3.33196,2492.9,2492.1,3.2078]
[1750906785564,0.80206,2492.3,2492.1,3.2078]
[1750906785770,0.80206,2492.3,2492.1,4.5651]
[1750906786166,1.3273,2492.9,2492.1,4.5651]
[1750906786369,0.80202,2492.4,2492.2,1.3573]
[1750906786676,0.80204,2492.3,2492.2,1.3573]
[1750906786875,0.80199,2492.5,2492.2,1.3573]
[1750906787268,0.80202,2492.4,2492.2,1.3573]
[1750906787569,0.80203,2492.4,2492.2,1.3573]
[1750906787870,0.80208,2492.2,2492.1,3.2078]
[1750906788477,0.8019,2492.8,2492.1,8.2078]
[1750906788668,3.2078,2493.4,2492.7,8.40037984]
[1750906788966,0.80185,2492.9,2492.8,1.372]
[1750906789273,3.2078,2493.1,2492.4,8.40037984]
[1750906789474,3.2078,2493.1,2492.4,3.2078]
[1750906789768,0.80188,2492.8,2492.7,3.2078]
[1750906792977,0.80201,2492.4,2492.3,4.5798]
[1750906793271,0.80201,2492.4,2492.3,5.74777064]
[1750906793574,0.80201,2492.4,2492.3,4.5798]
[1750906793765,3.2078,2493.1,2492.3,16.40747107]
[1750906793965,0.80191,2492.7,2492.6,3.2078]
[1750906794265,3.2078,2493.1,2492.6,3.2078]
[1750906794466,0.9215,2493.4,2492.9,3.2078]
[1750906794467,37.1703,2493.4,2492.9,3.2078]
[1750906794663,0.80182,2493.0,2492.9,3.2078]
[1750906795070,0.80188,2492.8,2492.7,2.60717064]
[1750906795466,0.80187,2492.9,2492.7,2.60717064]
[1750906795671,0.80187,2492.9,2492.8,1.4392]
[1750906795876,0.80185,2492.9,2492.8,1.4392]
[1750906796077,0.80185,2492.9,2492.8,2.60717064]
[1750906796265,3.2078,2493.4,2492.8,13.26687107]
[1750906796470,3.2078,2493.4,2493.1,1.16797064]
[1750906796771,3.2078,2493.4,2493.0,4.37577064]
[1750906796971,0.80179,2493.1,2493.0,5.68367064]
[1750906797175,46.62859877,2493.9,2493.0,5.68367064]
[1750906797176,3.2078,2494.6,2494.0,0.80147]
[1750906797369,0.80127,2494.8,2494.5,3.2078]
[1750906797575,0.80127,2494.8,2494.6,1.3079]
[1750906797880,0.80122,2494.9,2494.6,1.3079]
[1750906798067,0.80122,2494.9,2494.6,4.5157]
[1750906798376,0.9625,2495.3,2494.3,3.2078]
[1750906798377,3.2078,2494.7,2494.3,3.2078]
[1750906798578,3.2078,2495.1,2494.6,3.2078]
[1750906798772,0.80119,2495.0,2494.7,1.3079]
[1750906798973,0.80124,2494.8,2494.7,1.3079]
[1750906799179,0.80132,2494.6,2494.3,3.2078]
[1750906799675,0.80136,2494.5,2494.2,1.3003]
[1750906800178,3.2078,2494.5,2494.0,3.2078]
[1750906800472,1.0204,2494.8,2493.8,3.2078]
[1750906800680,3.2078,2495.4,2494.5,3.2078]
[1750906800872,3.2078,2494.8,2494.2,3.2078]
[1750906801271,3.2078,2496.0,2494.6,5.65970043]
[1750906801470,3.2078,2496.0,2495.3,3.2078]
[1750906801679,0.80085,2496.1,2495.9,3.2078]
[1750906801874,0.801,2495.6,2495.4,1.3003]
[1750906802081,0.80094,2495.8,2495.4,1.3003]
[1750906802277,3.2078,2496.0,2495.3,3.2078]
[1750906802478,3.2078,2495.4,2494.6,3.2078]
[1750906802781,0.8013,2494.6,2494.1,4.1316]
[1750906802975,0.80129,2494.7,2494.1,5.4748]
[1750906803283,3.2078,2494.9,2494.2,1.3432]
[1750906803284,0.80126,2494.8,2494.2,1.3432]
[1750906803484,1.3424,2494.8,2494.2,1.3432]
[1750906803680,3.2078,2494.9,2494.2,1.3432]
[1750906803879,3.2078,2494.9,2494.3,5.65970043]
[1750906804080,51.86670043,2496.1,2494.7,5.65970043]
[1750906804081,1.3424,2495.6,2494.7,5.65970043]
[1750906804290,1.3424,2495.6,2494.9,3.2078]
[1750906804884,0.80106,2495.4,2494.9,3.2078]
[1750906805080,0.80106,2495.4,2495.0,1.3432]
[1750906805276,0.80098,2495.6,2495.0,1.3432]
[1750906805482,3.2078,2495.7,2495.0,1.3432]
[1750906805681,3.2078,2495.7,2495.2,3.2078]
[1750906805985,0.80096,2495.7,2495.3,1.4268]
[1750906806185,0.80095,2495.7,2495.3,1.4268]
[1750906806380,0.8009,2495.9,2495.3,1.4268]
[1750906806589,0.80092,2495.8,2495.3,1.4268]
[1750906806775,0.80095,2495.7,2495.3,1.4268]
[1750906807083,4.1157,2496.0,2495.3,1.4268]
[1750906807477,3.2078,2496.3,2495.5,3.2078]
[1750906807784,2.00124,2497.2,2495.3,1.4268]
[1750906807785,0.9933,2496.7,2496.1,3.2078]
[1750906807984,1.0035,2497.4,2496.6,0.80064]
[1750906808288,0.8005,2497.1,2496.8,3.2078]
[1750906808486,2.436,2497.4,2496.8,3.2078]
[1750906808787,0.80049,2497.2,2496.8,3.2078]
[1750906808982,2.436,2497.4,2496.8,3.2078]
[1750906809184,0.80066,2496.6,2496.5,3.2078]
[1750906809381,0.80052,2497.1,2496.3,5.65970043]
[1750906809683,3.2078,2498.2,2496.8,3.2078]
[1750906809987,0.80029,2497.8,2497.4,3.2078]
[1750906810287,0.80031,2497.7,2497.4,3.2078]
[1750906810884,1.4325,2498.1,2497.5,1.3053]
[1750906811082,3.2078,2498.2,2497.5,1.3053]
[1750906811290,0.80022,2498.0,2497.7,3.2078]
[1750906811588,0.80022,2498.0,2497.8,1.3213]
[1750906811777,0.80024,2497.9,2497.8,1.3213]
[1750906811982,3.2078,2498.2,2497.4,3.2078]
[1750906812178,3.2078,2498.2,2497.7,3.2078]
[1750906812383,3.2078,2498.2,2497.8,1.3213]
[1750906812782,3.2078,2498.2,2497.9,5.65970043]
[1750906812987,0.80018,2498.1,2498.0,1.3213]
[1750906813281,3.2078,2498.2,2498.0,1.3213]
[1750906813885,0.80013,2498.3,2498.0,4.5291]
[1750906814086,1.313,2498.7,2498.0,4.5291]
[1750906814385,3.2078,2498.9,2498.1,0.80017]
[1750906814576,3.2078,2498.9,2498.3,3.2078]
[1750906814779,3.2078,2499.2,2498.6,3.2078]
[1750906814981,3.2078,2499.2,2498.7,1.3283]
[1750906815279,3.2078,2499.5,2498.9,3.2078]
[1750906815477,0.79984,2499.2,2498.9,3.2078]
[1750906815676,0.79976,2499.4,2499.0,1.3283]
[1750906815888,0.79985,2499.2,2499.0,1.3283]
[1750906816085,3.2078,2499.5,2499.0,1.3283]
[1750906816289,4.00766,2499.2,2498.7,11.73]
[1750906816485,1.3977,2499.4,2498.8,1.3283]
[1750906816486,0.79987,2499.1,2498.8,1.3283]
[1750906816690,1.3977,2499.4,2498.8,1.3283]
[1750906816691,3.2078,2499.3,2498.8,1.3283]
[1750906816878,0.9803,2499.7,2498.9,3.2078]
[1750906816879,0.79967,2499.7,2498.9,3.2078]
[1750906817079,0.79981,2499.3,2498.9,3.2078]
[1750906817285,0.7998,2499.3,2499.0,1.3283]
[1750906817478,0.08,2499.7,2499.2,3.2078]
[1750906817685,0.79977,2499.4,2499.2,3.2078]
[1750906817885,3.2078,2499.4,2498.8,14.9378]
[1750906818085,0.79981,2499.3,2498.8,14.9378]
[1750906818291,0.79978,2499.4,2499.1,3.2078]
[1750906818501,0.7998,2499.3,2499.2,1.3016]
[1750906818689,0.79978,2499.4,2499.2,1.3016]
[1750906819194,0.79975,2499.5,2499.2,1.3016]
[1750906819383,0.79973,2499.6,2499.2,1.3016]
[1750906819583,0.08,2499.7,2499.1,3.2078]
[1750906819784,3.2078,2499.5,2498.8,13.0316]
[1750906820188,0.80005,2498.5,2498.4,3.2078]
[1750906820386,3.2078,2499.0,2498.2,1.0229]
[1750906820585,3.2078,2499.5,2498.9,3.2078]
[1750906820784,0.79984,2499.2,2499.0,1.3772]
[1750906820986,1.4076,2499.6,2499.0,1.3772]
[1750906821186,0.08,2499.7,2499.0,1.3772]
[1750906821394,0.08,2499.7,2499.2,3.2078]
[1750906821590,0.08,2499.7,2499.3,1.3772]
[1750906821788,0.7997,2499.6,2499.3,1.3772]
[1750906822489,0.87968,2499.7,2499.3,1.3772]
[1750906822885,0.08,2499.7,2499.5,3.2078]
[1750906823086,0.79946,2500.4,2499.8,0.79962]
[1750906823282,0.79953,2500.2,2499.9,4.585]
[1750906823492,0.79957,2500.0,2499.9,3.2078]
[1750906823992,3.2078,2500.5,2499.9,3.2078]
[1750906824390,3.2078,2500.5,2500.0,1.3456]
[1750906824590,3.2078,2501.2,2500.2,3.2078]
[1750906824895,41.59918,2501.3,2500.5,3.2078]
[1750906825094,41.59918,2501.3,2500.3,7.00530043]
[1750906825095,40.8,2501.3,2500.8,3.2078]
[1750906825393,4.2308,2501.8,2500.9,1.3456]
[1750906825693,0.79914,2501.4,2500.9,1.3456]
[1750906825891,0.79918,2501.3,2500.6,12.52036]
[1750906826091,3.2078,2501.5,2500.8,3.2078]
[1750906826289,41.59905,2501.7,2501.0,0.79922]
[1750906826489,41.59905,2501.7,2500.9,1.3456]
[1750906826490,3.2078,2501.5,2501.2,0.79917]
[1750906826692,3.1953,2501.8,2501.2,3.2078]
[1750906826693,3.2078,2501.8,2501.2,3.2078]
[1750906826898,4.5512,2502.1,2501.3,1.3354]
[1750906827087,0.79908,2501.6,2501.2,14.9288]
[1750906827293,3.2078,2501.7,2501.2,14.9288]
[1750906827294,4.1854,2502.0,2501.2,14.9288]
[1750906827495,1.3434,2501.9,2501.3,0.79914]
[1750906827700,4.00685,2501.7,2501.3,1.3354]
[1750906827889,3.2078,2501.7,2501.2,14.9288]
[1750906828090,4.00685,2501.7,2501.2,14.9288]
[1750906828292,1.3434,2501.9,2500.5,3.2078]
[1750906828293,3.2078,2501.3,2500.5,3.2078]
[1750906828588,4.00714,2500.8,2500.2,16.2612]
[1750906828794,3.2078,2500.8,2500.2,14.9258]
[1750906828991,3.2078,2500.4,2499.9,3.2078]
[1750906829184,0.79957,2500.0,2499.9,3.2078]
[1750906829389,0.14544727,2502.4,2501.2,5.20578]
[1750906829589,1.3717,2502.8,2502.3,3.2078]
[1750906829796,4.5795,2502.8,2502.3,3.2078]
[1750906830491,0.07991,2502.7,2502.3,4.00664]
[1750906830685,0.07991,2502.7,2502.6,3.2078]
[1750906830896,3.28771,2502.7,2502.0,3.2078]
[1750906831100,3.2078,2502.4,2502.0,3.2078]
[1750906831301,3.2078,2502.4,2501.4,0.9998]
[1750906831302,3.15962118,2506.2,2504.4,3.2078]
[1750906831500,1.3717,2507.1,2504.4,46.095]
[1750906831687,1.3717,2507.1,2505.1,3.2078]
[1750906831688,3.2078,2505.8,2505.1,3.2078]
[1750906831887,3.2078,2506.1,2504.5,1.3189]
[1750906832189,3.2078,2505.6,2504.9,3.2078]
[1750906832389,0.07982,2505.5,2505.4,3.2078]
[1750906832591,11.79682,2505.5,2505.1,3.2078]
[1750906832785,2.2953,2505.4,2505.1,3.2078]
[1750906832984,0.07983,2505.3,2505.1,3.2078]
[1750906833391,3.2078,2507.3,2505.2,3.2078]
[1750906833589,3.2078,2505.5,2504.2,3.2078]
[1750906833793,3.2078,2505.5,2503.4,0.9416]
[1750906833794,3.2078,2504.3,2503.4,3.2078]
[1750906834103,3.2078,2504.0,2503.4,3.2078]
[1750906834397,1.3149,2503.9,2503.0,1.2964]
[1750906834591,0.79829,2504.1,2503.9,3.2078]
[1750906834894,0.07986,2504.2,2503.9,3.2078]
[1750906835095,1.99389,2506.4,2503.9,3.2078]
[1750906835096,3.2078,2506.3,2504.6,3.2078]
[1750906835286,0.40985114,2507.3,2506.2,3.2078]
[1750906835489,7.83397119,2507.9,2506.2,3.2078]
[1750906835490,3.2078,2507.9,2507.2,3.2078]
[1750906835686,3.2078,2507.5,2506.9,3.2078]
[1750906835890,1.3703,2507.7,2507.2,3.2078]
[1750906836100,46.47277166,2508.3,2507.2,3.2078]
[1750906836101,40.8,2507.6,2507.2,3.2078]
[1750906836396,40.8,2507.6,2506.3,9.13107119]
[1750906836397,3.2078,2509.0,2507.5,3.2078]
[1750906836589,3.2078,2509.7,2508.9,3.2078]
[1750906836790,3.2078,2509.8,2508.5,3.2078]
[1750906837001,3.2078,2510.4,2509.5,3.2078]
[1750906837195,3.85287,2511.6,2509.5,3.2078]
[1750906837196,3.2078,2510.5,2509.5,3.2078]
[1750906837498,0.07967,2510.3,2509.0,4.5049]
[1750906837797,3.2078,2510.0,2508.6,3.2078]
[1750906837995,3.2078,2509.4,2508.8,3.2078]
[1750906838206,0.79666,2509.2,2508.8,3.2078]
[1750906838397,13.255,2509.3,2508.6,3.2078]
[1750906838590,0.07967,2510.3,2509.0,4.00448]
[1750906838793,3.2078,2509.3,2507.5,0.14433846]
[1750906838992,3.2078,2509.3,2505.3,2.34057195]
[1750906838993,3.2078,2507.6,2506.8,3.2078]
[1750906839195,3.2078,2507.3,2506.5,3.2078]
[1750906839498,3.2078,2507.1,2506.5,3.2078]
[1750906839694,3.2078,2507.1,2506.1,1.3637]
[1750906839695,3.2078,2507.8,2507.0,3.2078]
[1750906839899,3.2078,2507.6,2506.6,3.2078]
[1750906840095,3.2078,2507.0,2506.6,3.2078]
[1750906840289,3.2078,2507.4,2506.3,3.2078]
[1750906840493,26.59797119,2507.5,2506.7,3.2078]
[1750906840494,17.4067,2507.5,2506.7,3.2078]
[1750906840800,40.8,2506.9,2506.4,3.2078]
[1750906841012,40.8,2506.9,2506.1,3.2078]
[1750906841013,3.2078,2506.7,2506.1,3.2078]
[1750906841299,3.2078,2506.6,2506.1,0.0798]
[1750906841504,40.8,2506.9,2506.5,3.2078]
[1750906841997,3.2078,2507.7,2506.6,1.3197]
[1750906842200,15.469,2508.3,2506.6,1.3197]
[1750906842201,0.79734,2507.0,2506.9,3.2078]
[1750906842400,3.2078,2507.1,2506.5,3.2078]
[1750906842702,15.469,2507.5,2506.1,0.0798]
[1750906842703,3.2078,2507.5,2506.6,3.2078]
[1750906842897,0.79728,2507.2,2507.1,3.2078]
[1750906843096,0.79741,2506.8,2506.2,17.7138]
[1750906843393,44.0078,2507.9,2506.5,4.0053]
[1750906843598,2.2648,2508.2,2507.2,3.2078]
[1750906843798,45.999,2508.5,2507.5,3.2078]
[1750906843997,3.2078,2508.2,2507.5,3.2078]
[1750906844199,1.99211,2508.6,2507.3,1.3197]
[1750906844200,0.79721,2507.4,2507.3,1.3197]
[1750906844704,4.00493,2507.7,2507.3,1.3197]
[1750906844893,45.3294,2508.1,2507.3,1.3197]
[1750906845098,3.2078,2508.4,2507.5,3.2078]
[1750906845299,3.2078,2508.4,2505.2,3.2078]
[1750906845300,3.2078,2506.9,2505.2,3.2078]
[1750906845494,3.2078,2506.2,2505.6,1.366]
[1750906845703,4.00539,2506.2,2505.6,1.366]
[1750906845903,3.2078,2506.2,2505.1,15.464]
[1750906846096,3.2078,2506.2,2505.3,1.366]
[1750906846097,0.79767,2506.0,2505.3,1.366]
[1750906846304,3.2078,2506.2,2505.3,1.366]
[1750906846510,4.00552,2505.9,2505.3,1.366]
[1750906846800,3.2078,2505.6,2505.3,1.366]
[1750906847000,3.2078,2505.9,2505.0,18.6718]
[1750906847205,3.2078,2505.9,2505.1,1.366]
[1750906847403,3.2078,2505.6,2505.1,1.44583]
[1750906847603,0.79791,2505.2,2505.1,0.07983]
[1750906847809,0.79811,2504.6,2504.3,3.2078]
[1750906848107,3.2078,2505.1,2504.4,0.87801]
[1750906848304,3.2078,2505.4,2504.7,3.2078]
[1750906848518,3.2078,2505.7,2504.6,3.2078]
[1750906848702,0.79784,2505.5,2504.9,3.2078]
[1750906848898,3.2078,2505.7,2505.0,4.54]
[1750906849197,3.2078,2505.7,2505.0,1.3322]
[1750906849405,0.79795,2505.1,2505.0,1.3322]
[1750906849802,3.2078,2505.1,2504.7,0.07984]
[1750906850004,3.2078,2505.1,2504.7,1.41204]
[1750906850005,0.79795,2505.1,2504.7,1.41204]
[1750906850312,0.79799,2505.0,2504.7,1.41204]
[1750906850611,0.79802,2504.9,2504.7,1.41204]
[1750906850803,0.79799,2505.0,2504.7,1.41204]
[1750906851009,0.79797,2505.1,2504.7,1.41204]
[1750906851315,1.4171,2505.6,2504.7,0.07984]
[1750906851316,3.2078,2505.0,2504.7,0.07984]
[1750906851503,0.79796,2505.1,2504.7,0.07984]
[1750906851710,0.79796,2505.1,2504.8,1.3592]
[1750906852008,3.2078,2505.2,2504.7,0.07984]
[1750906852214,0.79804,2504.8,2504.7,0.07984]
[1750906852410,0.79823,2504.2,2504.1,1.3592]
[1750906852709,0.79827,2504.1,2503.8,3.2078]
[1750906852907,0.79824,2504.2,2503.8,3.2078]
[1750906853110,3.2078,2504.4,2503.8,3.2078]
[1750906853407,3.2078,2504.3,2503.6,1.3592]
[1750906853603,3.2078,2504.3,2503.6,4.567]
[1750906853804,4.00602,2504.3,2503.6,4.567]
[1750906854107,3.2078,2504.3,2503.7,0.79839]
[1750906854306,0.79823,2504.2,2503.6,4.567]
[1750906854510,0.79827,2504.1,2503.6,3.2078]
[1750906854712,3.2078,2503.8,2503.4,0.79847]
[1750906854905,0.01687679,2503.6,2503.5,2.12346]
[1750906855105,3.2078,2504.1,2503.5,2.12346]
[1750906855106,3.2078,2504.1,2503.8,0.79834]
[1750906855308,3.2078,2504.1,2503.9,1.325]
[1750906855504,0.79814,2504.5,2503.9,1.325]
[1750906855505,3.2078,2504.5,2503.9,1.325]
[1750906855712,3.2078,2506.6,2505.1,3.2078]
[1750906855906,1.9967,2506.2,2506.1,3.2078]
[1750906856103,0.01687679,2506.2,2506.1,3.2078]
[1750906856305,0.01687679,2506.2,2506.1,0.79763]
[1750906856508,2.01357679,2506.2,2506.1,3.2078]
[1750906856810,2.01357679,2506.2,2505.6,1.325]
[1750906856811,2.81117679,2506.2,2505.6,1.325]
[1750906857114,1.9967,2505.6,2505.0,3.2078]
[1750906857414,0.03375358,2505.9,2505.2,3.2078]
[1750906857618,0.03375358,2505.9,2505.7,0.79775]
[1750906857803,0.03375358,2505.9,2505.5,3.2078]
[1750906857804,3.58e-06,2505.9,2505.6,15.464]
[1750906858006,3.2078,2508.1,2505.9,1.99422]
[1750906858210,0.79749,2506.6,2505.7,18.6718]
[1750906858407,3.2078,2507.0,2506.0,3.2078]
[1750906858612,1.9967,2506.7,2506.5,0.79748]
[1750906858813,1.4058,2507.3,2506.6,3.2078]
[1750906859008,3.2078,2506.9,2506.1,3.2078]
[1750906859320,1.4058,2507.3,2506.7,4.00522]
[1750906859321,1.9967,2506.8,2506.7,4.00522]
[1750906859619,1.9967,2507.1,2506.7,3.2078]
[1750906859814,1.9967,2507.1,2507.0,3.2078]
[1750906860018,3.2078,2507.7,2506.7,3.2078]
[1750906860410,3.95830682,2510.3,2506.7,3.2078]
[1750906860411,1.4,2508.5,2507.6,3.2078]
[1750906860617,0.5574,2508.2,2508.0,3.2078]
[1750906861125,0.5574,2508.1,2508.0,3.2078]
[1750906861316,1.4,2508.7,2508.0,3.2078]
[1750906861516,1.4,2508.7,2508.5,3.2078]
[1750906861716,0.5574,2508.6,2508.5,3.2078]
[1750906862221,5.5574,2508.6,2507.9,3.2078]
[1750906862422,5.5574,2508.6,2506.7,2.26134975]
[1750906862423,0.5574,2507.5,2506.6,3.2078]
[1750906862616,1.4,2507.4,2506.7,0.07978]
[1750906862920,4.0052,2506.8,2506.7,0.07978]
[1750906863121,0.79775,2505.8,2505.3,3.2078]
[1750906863330,0.5574,2505.4,2505.0,3.2078]
[1750906863618,0.5574,2505.9,2505.3,3.2078]
[1750906863814,4.1356,2506.7,2505.4,0.07982]
[1750906863815,3.2078,2506.1,2505.4,0.07982]
[1750906864028,0.79782,2505.5,2505.4,0.07982]
[1750906864207,0.5574,2505.5,2505.4,0.07982]
[1750906864407,1.3503,2506.2,2505.4,5.07982]
[1750906864612,1.3503,2506.2,2505.4,3.28762]
[1750906864812,0.9278,2506.7,2506.0,3.2078]
[1750906865012,1.3503,2506.6,2506.0,3.2078]
[1750906865312,0.9278,2506.7,2506.3,3.2078]
[1750906865711,0.9278,2506.7,2505.5,0.07982]
[1750906865712,0.79769,2505.9,2505.8,3.2078]
[1750906865912,16.8083,2506.6,2505.8,0.59504333]
[1750906866112,0.79766,2506.0,2505.9,0.59504333]
[1750906866313,3.2078,2506.5,2505.9,0.59504333]
[1750906866514,0.5574,2506.3,2506.0,4.35392301]
[1750906866821,0.5574,2506.6,2506.3,0.79754]
[1750906867022,0.5574,2506.8,2506.5,3.2078]
[1750906867220,1.3378,2507.0,2506.5,3.2078]
[1750906867427,0.5574,2506.6,2506.4,1.3237]
[1750906867619,3.2078,2507.4,2506.5,3.79839429]
[1750906867927,3.2078,2507.4,2506.7,3.2078]
[1750906868122,0.5574,2506.9,2506.7,3.2078]
[1750906868310,3.2078,2507.4,2506.7,3.2078]
[1750906868512,0.9278,2508.0,2506.4,1.3237]
[1750906868513,0.7973,2507.2,2507.0,3.2078]
[1750906868714,0.79731,2507.1,2507.0,3.2078]
[1750906868911,0.79731,2507.1,2506.9,3.2078]
[1750906868912,0.5574,2507.1,2506.9,3.2078]
[1750906869125,0.5574,2507.0,2506.9,3.2078]
[1750906869322,3.2078,2507.5,2506.9,3.2078]
[1750906869529,0.5574,2507.1,2506.9,3.2078]
[1750906869719,1.35474,2507.0,2506.6,3.2078]
[1750906870025,0.5574,2506.7,2506.6,3.2078]
[1750906870412,1.3965,2507.1,2506.6,3.2078]
[1750906870613,0.5574,2507.0,2506.6,3.2078]
[1750906870823,0.5574,2507.0,2506.9,3.2078]
[1750906871036,0.9672,2507.7,2506.9,3.2078]
[1750906871037,3.2078,2508.1,2506.9,18.3708]
[1750906871323,4.6043,2508.1,2507.0,3.2078]
[1750906871544,3.2078,2507.4,2506.8,3.2078]
[1750906871821,1.3965,2507.3,2506.8,3.2078]
[1750906872024,3.2078,2507.8,2506.8,3.2078]
[1750906872225,3.10787457,2509.6,2507.7,3.2078]
[1750906872427,1.4004,2509.8,2509.5,3.2078]
[1750906872625,0.79663,2509.3,2509.2,3.2078]
[1750906872826,1.4004,2509.8,2509.2,3.2078]
[1750906873127,4.6082,2509.8,2509.2,3.2078]
[1750906873330,0.13098369,2510.9,2509.6,3.2078]
[1750906873331,0.79636,2510.1,2509.6,3.2078]
[1750906873521,0.79636,2510.1,2510.0,3.2078]
[1750906873721,0.79645,2509.8,2509.7,3.2078]
[1750906874032,0.79654,2509.6,2509.4,3.2078]
[1750906874334,0.01295295,2509.5,2509.0,3.2078]
[1750906874521,0.01295295,2509.5,2509.4,3.2078]
[1750906874725,3.22075295,2509.5,2508.8,3.2078]
[1750906875022,3.2078,2509.4,2508.8,3.2078]
[1750906875225,1.35414,2508.9,2508.8,3.2078]
[1750906875524,0.57035295,2508.9,2508.4,3.2078]
[1750906875725,0.5574,2508.5,2507.6,7.83397119]
[1750906875922,0.79686,2508.5,2508.4,3.2078]
[1750906876322,0.79697,2508.2,2508.1,3.2078]
[1750906876728,1.35436,2508.2,2508.1,3.2078]
[1750906877033,0.5574,2508.2,2508.1,3.2078]
[1750906877530,0.03872541,2508.2,2508.1,3.2078]
[1750906877727,0.03872541,2508.2,2508.1,4.00479]
[1750906877927,0.79672,2509.0,2508.2,0.79694]
[1750906878135,0.5574,2508.5,2508.3,1.3498]
[1750906878338,0.5574,2508.7,2508.4,3.2078]
[1750906878550,2.0274,2509.4,2508.4,3.2078]
[1750906878551,3.2078,2509.1,2508.4,3.2078]
[1750906878830,1.99234,2508.3,2507.0,3.2078]
[1750906879031,0.5574,2507.5,2507.3,3.2078]
[1750906879333,0.79711,2507.8,2507.3,3.2078]
[1750906879537,0.5574,2507.6,2507.3,3.2078]
[1750906879736,0.01291512,2507.5,2507.3,3.2078]
[1750906880037,0.01291512,2507.5,2507.4,1.3498]
[1750906880838,0.01291512,2507.5,2507.3,3.2078]
[1750906881136,0.79697,2508.2,2507.5,0.79717]
[1750906881439,3.2078,2509.1,2508.1,3.2078]
[1750906881628,1.0175,2509.3,2507.4,9.14337119]
[1750906881629,0.79657,2509.5,2508.9,3.2078]
[1750906881832,0.79657,2509.5,2508.4,7.83397119]
[1750906881833,0.9324,2510.2,2509.2,3.2078]
[1750906882034,40.8,2510.1,2509.1,3.2078]
[1750906882337,0.79645,2509.8,2509.7,3.2078]
[1750906882738,0.5574,2509.8,2509.7,3.2078]
[1750906882936,0.79654,2509.6,2509.4,3.2078]
[1750906883135,40.8,2510.1,2509.4,3.2078]
[1750906883438,3.2078,2511.2,2509.9,3.2078]
[1750906883632,3.2078,2511.2,2509.6,7.83397119]
[1750906883633,3.2078,2510.6,2509.6,3.2078]
[1750906883934,3.2078,2510.9,2509.6,4.00429]
[1750906884137,15.156,2511.2,2508.9,7.83397119]
[1750906884138,0.5574,2510.0,2509.7,3.2078]
[1750906884332,3.7652,2509.8,2508.4,1.13067487]
[1750906884530,15.152,2510.5,2508.4,3.2078]
[1750906884531,3.2078,2509.4,2508.4,3.2078]
[1750906884730,0.5574,2509.0,2508.8,3.2078]
[1750906885127,3.2078,2509.4,2508.5,3.2078]
[1750906885333,3.2078,2510.2,2509.0,3.2078]
[1750906885539,1.35407,2509.1,2509.0,3.2078]
[1750906885740,1.9595,2510.1,2509.0,3.2078]
[1750906885938,0.5574,2509.5,2509.0,3.2078]
[1750906886133,0.5574,2509.3,2509.0,3.2078]
[1750906886330,3.2078,2509.9,2509.0,1.72675]
[1750906886331,0.79667,2509.1,2509.0,1.72675]
[1750906886639,0.5574,2509.1,2508.2,3.2078]
[1750906886837,0.5574,2508.9,2508.6,3.2078]
[1750906887037,0.5574,2509.0,2508.6,3.2078]
[1750906887236,0.5574,2509.0,2508.3,4.00471]
[1750906887435,3.2078,2509.4,2508.6,3.2078]
[1750906887639,0.5574,2509.2,2508.6,3.2078]
[1750906887837,0.79664,2509.3,2508.1,0.9249]
[1750906887838,0.5574,2508.7,2508.2,0.991]
[1750906888035,0.5574,2508.5,2508.4,3.2078]
[1750906888340,18.3588,2509.4,2508.4,3.2078]
[1750906888640,0.79696,2508.2,2507.9,49.1388]
[1750906888941,0.5574,2508.0,2507.6,3.2078]
[1750906889245,0.5574,2507.8,2507.6,3.2078]
[1750906889644,0.5574,2507.7,2507.3,3.2078]
[1750906889943,0.79708,2507.9,2507.6,3.2078]
[1750906890141,0.5574,2508.0,2507.6,3.2078]
[1750906890334,1.3896,2508.7,2507.6,11.04177119]
[1750906890536,0.5574,2508.2,2507.6,11.04177119]
[1750906890738,0.5574,2507.9,2507.3,3.2078]
[1750906891045,0.5574,2507.7,2507.3,3.2078]
[1750906891340,0.79723,2507.4,2507.2,3.2078]
[1750906891642,0.5574,2507.9,2507.2,8.2078]
[1750906891839,0.79714,2507.7,2507.2,3.2078]
[1750906892043,3.2078,2508.2,2507.2,4.00506]
[1750906892044,0.5574,2507.9,2507.2,4.00506]
[1750906892245,1.35451,2507.8,2507.2,4.00506]
[1750906892445,0.5574,2507.7,2507.2,3.2078]
[1750906892641,0.79718,2507.6,2507.2,3.2078]
[1750906892847,0.5574,2507.7,2507.1,3.2078]
[1750906892848,3.2078,2507.7,2507.1,3.2078]
[1750906893046,0.79727,2507.3,2507.1,3.2078]
[1750906893245,3.2078,2507.7,2507.1,3.2078]